fUSD/lending_fUSD_20250115
["ID","MTS","AMOUNT","RATE_DAILY","PERIOD"]
[349037019,1736946647101,-522.56,0.00019627,2]
[349037020,1736946647111,-500.0,0.00019627,2]
[349037021,1736946647122,-500.0,0.00019627,2]
[349037022,1736946647131,-500.0,0.00019627,2]
[349037023,1736946647141,-500.0,0.00019627,2]
[349037024,1736946647150,-500.0,0.00019627,2]
[349037025,1736946647161,-500.0,0.00019627,2]
[349037026,1736946647170,-500.0,0.00019627,2]
[349037027,1736946647180,-562.4,0.00019627,2]
[349037028,1736946647190,-281.55,0.00019627,2]
[349037029,1736946647200,-590.28,0.00019627,2]
[349037030,1736946647210,-500.0,0.00019628,2]
[349037031,1736946647220,-500.0,0.00019628,2]
[349037032,1736946647229,-150.0,0.00019635,2]
[349037033,1736946647239,-150.0,0.00019683,2]
[349037034,1736946647250,-340.0,0.00019776,2]
[349037035,1736946647259,-500.0,0.00019893,2]
[349037036,1736946647269,-500.0,0.00019893,2]
[349037037,1736946647278,-500.0,0.00019893,2]
[349037038,1736946647288,-500.0,0.00019893,2]
[349037039,1736946647299,-500.0,0.00019894,2]
[349037040,1736946647307,-500.0,0.00019894,2]
[349037041,1736946647316,-500.0,0.00019894,2]
[349037042,1736946647325,-292.74,0.00019894,2]
[349037043,1736946647336,-406.68,0.00019894,2]
[349037044,1736946647347,-500.0,0.00019894,2]
[349037045,1736946647356,-500.0,0.00019894,2]
[349037046,1736946647366,-150.0,0.00019896,2]
[349037047,1736946647376,-500.0,0.000199,2]
[349037048,1736946647386,-600.0,0.000199,7]
[349037049,1736946647396,-500.0,0.000199,2]
[349037050,1736946647406,-500.0,0.000199,2]
[349037051,1736946647417,-500.0,0.000199,2]
[349037052,1736946647426,-500.0,0.00019901,2]
[349037053,1736946647435,-500.0,0.00019901,2]
[349037054,1736946647446,-500.0,0.00019901,2]
[349037055,1736946647456,-253.11,0.00019901,2]
[349037056,1736946647467,-500.0,0.00019901,2]
[349037057,1736946647476,-500.0,0.00019901,2]
[349037058,1736946647485,-500.0,0.00019902,2]
[349037059,1736946647495,-500.0,0.00019902,2]
[349037060,1736946647505,-150.0,0.00019985,2]
[349037061,1736946647516,-400.0,0.00020089,2]
[349037062,1736946647525,-677.63152206,0.00020141,2]
[349037063,1736946647536,-500.0,0.00020167,2]
[349037064,1736946647546,-500.0,0.00020167,2]
[349037065,1736946647556,-500.0,0.00020167,2]
[349037066,1736946647567,-500.0,0.00020167,2]
[349037067,1736946647577,-500.0,0.00020168,2]
[349037068,1736946647587,-500.0,0.00020168,2]
[349037069,1736946647597,-500.0,0.00020168,2]
[349037070,1736946647607,-500.0,0.00020168,2]
[349037071,1736946647617,-500.0,0.00020168,2]
[349037072,1736946647627,-521.25,0.0002017,2]
[349037073,1736946647636,-500.0,0.00020174,2]
[349037074,1736946647647,-500.0,0.00020174,2]
[349037075,1736946647658,-500.0,0.00020174,2]
[349037076,1736946647668,-265.84,0.00020174,2]
[349037077,1736946647678,-423.58499604,0.00020175,2]
[349037078,1736946647688,-500.0,0.00020175,2]
[349037079,1736946647698,-500.0,0.00020175,2]
[349037080,1736946647708,-500.0,0.00020175,2]
[349037081,1736946647718,-448.59,0.00020175,2]
[349037082,1736946647728,-500.0,0.00020176,2]
[349037083,1736946647737,-500.0,0.00020176,2]
[349037084,1736946647748,-150.0,0.00020187,2]
[349037085,1736946647757,-493.61,0.000202,7]
[349037086,1736946647768,-500.0,0.00020441,2]
[349037087,1736946647781,-500.0,0.00020441,2]
[349037088,1736946647792,-500.0,0.00020441,2]
[349037089,1736946647802,-500.0,0.00020442,2]
[349037090,1736946647811,-500.0,0.00020442,2]
[349037091,1736946647821,-396.16,0.00020442,2]
[349037092,1736946647832,-500.0,0.00020442,2]
[349037093,1736946647842,-500.0,0.00020442,2]
[349037094,1736946647851,-500.0,0.00020448,2]
[349037095,1736946647861,-500.0,0.00020448,2]
[349037096,1736946647870,-332.7,0.00020448,2]
[349037097,1736946647880,-308.28487769,0.00020449,2]
[349037098,1736946647889,-500.0,0.00020449,2]
[349037099,1736946647899,-500.0,0.00020449,2]
[349037100,1736946647909,-500.0,0.0002045,2]
[349037101,1736946647919,-500.0,0.0002045,2]
[349037102,1736946647929,-177.3,0.00020548,2]
[349037103,1736946647939,-150.0,0.00020692,2]
[349037104,1736946647948,-397.85,0.00020715,2]
[349037105,1736946647958,-500.0,0.00020715,2]
[349037106,1736946647967,-409.62,0.00020716,2]
[349037107,1736946647977,-598.26,0.00020716,2]
[349037108,1736946647987,-500.0,0.00020716,2]
[349037109,1736946647996,-500.0,0.00020716,2]
[349037110,1736946648006,-509.77,0.00020722,2]
[349037111,1736946648016,-500.0,0.00020722,2]
[349037112,1736946648025,-500.0,0.00020723,2]
[349037113,1736946648039,-563.57,0.00020724,2]
[349037114,1736946648048,-153.62,0.00020724,2]
[349037115,1736946648058,-400.0,0.00020758,2]
[349037116,1736946648069,-235.19,0.00020822,2]
[349037117,1736946648078,-211.5,0.00020989,2]
[349037118,1736946648088,-500.0,0.0002099,2]
[349037119,1736946648098,-500.0,0.0002099,2]
[349037120,1736946648110,-458.34,0.00020996,2]
[349037121,1736946648120,-500.0,0.00020997,2]
[349037122,1736946648129,-800.0,0.00021,2]
[349037123,1736946648139,-325.61,0.00021148,2]
[349037124,1736946648149,-150.0,0.00021197,2]
[349037125,1736946648161,-500.0,0.00021264,2]
[349037126,1736946648171,-500.0,0.00021264,2]
[349037127,1736946648181,-500.0,0.00021271,2]
[349037128,1736946648190,-677.63152206,0.00021383,2]
[349037129,1736946648200,-520.68,0.00021538,2]
[349037130,1736946648210,-500.0,0.00021538,2]
[349037131,1736946648220,-328.46,0.00021545,2]
[349037132,1736946648229,-340.0,0.00021574,2]
[349037133,1736946648239,-150.0,0.00021702,2]
[349037134,1736946648249,-150.0,0.00021755,5]
[349037135,1736946648259,-150.0,0.00021755,5]
[349037136,1736946648270,-442.45228901,0.00021812,2]
[349037137,1736946648279,-185.35,0.000219,31]
[349037138,1736946648289,-185.35,0.000219,31]
[349037139,1736946648299,-185.35,0.000219,31]
[349037140,1736946648309,-185.35,0.000219,31]
[349037141,1736946648319,-185.35,0.000219,31]
[349037142,1736946648330,-185.35,0.000219,31]
[349037143,1736946648339,-185.35,0.000219,31]
[349037144,1736946648349,-185.35,0.000219,31]
[349037145,1736946648358,-185.35,0.000219,31]
[349037146,1736946648368,-185.35,0.000219,31]
[349037147,1736946648377,-185.35,0.000219,31]
[349037148,1736946648387,-185.35,0.000219,31]
[349037149,1736946648397,-185.35,0.000219,31]
[349037150,1736946648408,-185.35,0.000219,31]
[349037151,1736946648418,-185.35,0.000219,31]
[349037152,1736946648428,-185.35,0.000219,31]
[349037153,1736946648438,-500.0,0.00021917,2]
[349037154,1736946648448,-500.0,0.00021917,2]
[349037155,1736946648458,-500.0,0.00021917,2]
[349037156,1736946648468,-500.0,0.00021917,2]
[349037157,1736946648478,-500.0,0.00021917,2]
[349037158,1736946648488,-166.91,0.00021922,2]
[349037159,1736946648497,-179.0,0.00022,2]
[349037160,1736946648507,-1541.0,0.00022135,2]
[349037161,1736946648517,-3000.0,0.000222,2]
[349037162,1736946648526,-150.0,0.00022206,2]
[349037163,1736946648536,-1541.0,0.00022363,2]
[349037164,1736946648545,-1541.0,0.00022591,2]
[349037165,1736946648555,-677.63152206,0.00022624,2]
[349037166,1736946648564,-150.0,0.00022711,2]
[349037167,1736946648574,-235.19,0.00022715,2]
[349037168,1736946648586,-1541.0,0.00022819,2]
[349037169,1736946648596,-572.54262377,0.00022819,2]
[349037170,1736946648606,-179.98421632,0.00022921,2]
[349037171,1736946648617,-850.0,0.00023,2]
[349037172,1736946648627,-200.0,0.00023,2]
[349037173,1736946648638,-1541.0,0.00023047,2]
[349037174,1736946648648,-150.0,0.00023216,2]
[349037175,1736946648660,-1541.0,0.00023275,2]
[349037176,1736946648670,-325.61,0.00023412,2]
[349037177,1736946648680,-1541.0,0.00023504,2]
[349037178,1736946648691,-150.0,0.0002372,2]
[349037179,1736946648702,-264.96,0.00023836,2]
[349037180,1736946648712,-677.63152206,0.00023866,2]
[349037181,1736946648722,-506.22125084,0.00023998,2]
[349037182,1736946648732,-150.0,0.00024225,2]
[349037183,1736946648742,-6169.0,0.00024466,2]
[349037184,1736946648752,-2672.70655402,0.00024498,2]
[349037185,1736946648762,-1000.0,0.00024658,2]
[349037186,1736946648772,-250.0,0.000247,2]
[349037187,1736946648782,-1200.0,0.000247,2]
[349037188,1736946648793,-508.74832081,0.000247,2]
[349037189,1736946648803,-150.0,0.0002473,2]
[349037190,1736946648813,-185.35,0.000248,31]
[349037191,1736946648823,-185.35,0.000248,31]
[349037192,1736946648832,-185.35,0.000248,31]
[349037193,1736946648843,-185.35,0.000248,31]
[349037194,1736946648856,-185.35,0.000248,31]
[349037195,1736946648866,-185.35,0.000248,31]
[349037196,1736946648877,-185.35,0.000248,31]
[349037197,1736946648887,-185.35,0.000248,31]
[349037198,1736946648897,-185.35,0.000248,31]
[349037199,1736946648907,-185.35,0.000248,31]
[349037200,1736946648918,-185.35,0.000248,31]
[349037201,1736946648928,-185.35,0.000248,31]
[349037202,1736946648938,-185.35,0.000248,31]
[349037203,1736946648948,-185.35,0.000248,31]
[349037204,1736946648958,-185.35,0.000248,31]
[349037205,1736946648968,-185.35,0.000248,31]
[349037206,1736946648978,-185.35,0.000248,31]
[349037207,1736946648988,-185.35,0.000248,31]
[349037208,1736946648997,-185.35,0.000248,31]
[349037209,1736946649007,-185.35,0.000248,31]
[349037210,1736946649016,-185.35,0.000248,31]
[349037211,1736946649025,-185.35,0.000248,31]
[349037212,1736946649039,-185.35,0.000248,31]
[349037213,1736946649048,-185.35,0.000248,31]
[349037214,1736946649057,-3000.0,0.000249,2]
[349037215,1736946649066,-500.0,0.00024932,2]
[349037216,1736946649076,-150.0,0.00025,2]
[349037217,1736946649087,-900.0,0.00025,2]
[349037218,1736946649096,-168.0,0.00025,2]
[349037219,1736946649106,-677.63152206,0.00025107,2]
[349037220,1736946649117,-150.0,0.00025234,2]
[349037221,1736946649128,-280.0,0.000253,10]
[349037222,1736946649138,-411.34,0.000255,14]
[349037223,1736946649147,-838.0,0.00025567,2]
[349037224,1736946649157,-325.61,0.00025676,2]
[349037225,1736946649167,-150.0,0.00025739,2]
[349037226,1736946649178,-150.0,0.00026244,2]
[349037227,1736946649188,-677.63152206,0.00026348,2]
[349037228,1736946649198,-150.0,0.00026748,2]
[349037229,1736946649207,-150.0,0.00027,2]
[349037230,1736946649217,-950.0,0.00027,2]
[349037231,1736946649226,-451.9155821,0.00027047,4]
[349037232,1736946649236,-150.0,0.00027253,2]
[349037233,1736946649245,-150.0,0.00027326,2]
[349037234,1736946649254,-150.0,0.00027383,2]
[349037235,1736946649264,-200.0,0.00027397,60]
[349037236,1736946649273,-3467.07,0.00027397,2]
[349037237,1736946649283,-532.93,0.00027397,2]
[349037238,1736946649292,-220.0,0.000274,2]
[349037239,1736946649302,-179.98421632,0.00027411,2]
[349037240,1736946649312,-150.0,0.00027454,2]
[349037241,1736946649322,-2000.0,0.00027462,2]
[349037242,1736946649333,-150.0,0.00027473,2]
[349037243,1736946649344,-535.3182,0.000275,2]
[349037244,1736946649355,-150.0,0.00027514,2]
[349037245,1736946649365,-1060.37186748,0.00027524,7]
[349037246,1736946649376,-3048.19303107,0.00027525,7]
[349037247,1736946649387,-1741.44605996,0.00027532,7]
[349037248,1736946649397,-1741.44605996,0.00027535,7]
[349037249,1736946649409,-1741.44605996,0.00027537,7]
[349037250,1736946649420,-3048.19303107,0.00027538,7]
[349037251,1736946649431,-150.0,0.00027542,2]
[349037252,1736946649443,-150.0,0.00027542,2]
[349037253,1736946649453,-200.0,0.00027543,7]
[349037254,1736946649463,-200.0,0.00027548,7]
[349037255,1736946649474,-1060.37186748,0.00027551,7]
[349037256,1736946649485,-1060.37186748,0.00027554,7]
[349037257,1736946649496,-3048.19303107,0.00027563,7]
[349037258,1736946649506,-1060.37186748,0.0002757,7]
[349037259,1736946649516,-1741.44605996,0.00027584,7]
[349037260,1736946649526,-3048.19303107,0.00027585,7]
[349037261,1736946649536,-1741.44605996,0.00027586,7]
[349037262,1736946649547,-500.0,0.00027589,2]
[349037263,1736946649557,-677.63152206,0.0002759,2]
[349037264,1736946649567,-200.0,0.0002759,7]
[349037265,1736946649584,-3048.19303107,0.00027593,7]
[349037266,1736946649595,-1060.37186748,0.00027594,7]
[349037267,1736946649604,-200.0,0.00027595,7]
[349037268,1736946649615,-1741.44605996,0.00027596,7]
[349037269,1736946649626,-3048.19303107,0.00027598,7]
[349037270,1736946649635,-500.0,0.00027599,2]
[349037271,1736946649647,-1060.37186748,0.00027599,7]
[349037272,1736946649657,-229278.84774515,0.000276,7]
[349037273,1736946649667,-3000.0,0.000276,2]
[349037274,1736946649678,-500.0,0.00027616,2]
[349037275,1736946649688,-500.0,0.00027644,2]
[349037276,1736946649697,-797.34351848,0.00027671,2]
[349037277,1736946649707,-248.0,0.00027671,2]
[349037278,1736946649717,-3000.0,0.000277,2]
[349037279,1736946649727,-185.35,0.000277,31]
[349037280,1736946649737,-185.35,0.000277,31]
[349037281,1736946649746,-185.35,0.000277,31]
[349037282,1736946649756,-185.35,0.000277,31]
[349037283,1736946649767,-185.35,0.000277,31]
[349037284,1736946649778,-185.35,0.000277,31]
[349037285,1736946649788,-185.35,0.000277,31]
[349037286,1736946649798,-185.35,0.000277,31]
[349037287,1736946649808,-185.35,0.000277,31]
[349037288,1736946649818,-185.35,0.000277,31]
[349037289,1736946649828,-185.35,0.000277,31]
[349037290,1736946649838,-185.35,0.000277,31]
[349037291,1736946649848,-185.35,0.000277,31]
[349037292,1736946649858,-185.35,0.000277,31]
[349037293,1736946649867,-185.35,0.000277,31]
[349037294,1736946649877,-185.35,0.000277,31]
[349037295,1736946649887,-185.35,0.000277,31]
[349037296,1736946649897,-185.35,0.000277,31]
[349037297,1736946649906,-185.35,0.000277,31]
[349037298,1736946649916,-185.35,0.000277,31]
[349037299,1736946649926,-185.35,0.000277,31]
[349037300,1736946649936,-185.35,0.000277,31]
[349037301,1736946649946,-185.35,0.000277,31]
[349037302,1736946649956,-185.35,0.000277,31]
[349037303,1736946649966,-150.0,0.00027758,2]
[349037304,1736946649976,-391.0,0.0002783,15]
[349037305,1736946649986,-1300.0,0.000279,10]
[349037306,1736946649996,-325.61,0.0002794,2]
[349037307,1736946650006,-524.10811155,0.00027999,2]
[349037308,1736946650015,-500.0,0.00028,2]
[349037309,1736946650026,-500.0,0.00028,2]
[349037310,1736946650038,-1000.0,0.00028,120]
[349037311,1736946650050,-427.08897909,0.00028,120]
[349037312,1736946650060,-115768.36145302,0.00028,4]
[349037313,1736946650070,-643.773192,0.00028,20]
[349037314,1736946650081,-1019.02642217,0.00028,2]
[349037315,1736946650091,-1800.0,0.00028,29]
[349037316,1736946650101,-1439.69,0.00028,120]
[349037317,1736946650112,-152.0,0.00028031,6]
[349037318,1736946650123,-150.0,0.00028262,2]
[349037319,1736946650133,-2000.0,0.000283,8]
[349037320,1736946650143,-150.0,0.00028767,2]
[349037321,1736946650153,-179.2,0.0002877,120]
[349037322,1736946650164,-150.5,0.0002877,30]
[349037323,1736946650174,-150.5,0.0002878,30]
[349037324,1736946650184,-150.5,0.0002878,120]
[349037325,1736946650194,-150.5,0.0002879,120]
[349037326,1736946650203,-150.5,0.0002879,30]
[349037327,1736946650213,-1000000.0,0.000288,30]
[349037328,1736946650223,-25324.92628025,0.000288,2]
[349037329,1736946650233,-506.49852561,0.000288,2]
[349037330,1736946650243,-677.63152206,0.00028831,2]
[349037331,1736946650253,-2000.0,0.000289,10]
[349037332,1736946650263,-500.0,0.00029,120]
[349037333,1736946650273,-958.03349006,0.00029,120]
[349037334,1736946650283,-1800.0,0.00029,30]
[349037335,1736946650293,-1000.0,0.00029,2]
[349037336,1736946650303,-343.70451955,0.000292,120]
[349037337,1736946650312,-2000.0,0.000293,8]
[349037338,1736946650323,-152.0,0.0002976,7]
[349037339,1736946650333,-155.018427,0.0002976,5]
[349037340,1736946650343,-2000.0,0.00029876,31]
[349037341,1736946650354,-154.622,0.0002989,120]
[349037342,1736946650364,-2700.0,0.000299,10]
[349037343,1736946650375,-166.0,0.0002994,120]
[349037344,1736946650386,-166.0,0.0002995,120]
[349037345,1736946650396,-166.0,0.0002996,120]
[349037346,1736946650406,-226.75892931,0.0002999,2]
[349037347,1736946650417,-426.0,0.00029998,120]
[349037348,1736946650427,-500.0,0.00029999,2]
[349037349,1736946650438,-395.81505396,0.00029999,2]
[349037350,1736946650448,-500.0,0.00029999,2]
[349037351,1736946650459,-158.11230289,0.00029999,2]
[349037352,1736946650469,-53829.9910824,0.0003,30]
[349037353,1736946650486,-840.0,0.0003,30]
[349037354,1736946650498,-895.81505396,0.0003,30]
[349037355,1736946650514,-11311.33436804,0.0003,30]
[349037356,1736946650530,-500.0,0.00019079,2]
[349037357,1736946650540,-3175.68974,0.0003,30]
[349037358,1736946650729,-500.0,0.00018531,2]
[349037359,1736946650739,-500.0,0.00018804,2]
[349037360,1736946650750,-500.0,0.00019078,2]
[349037361,1736946650760,-500.0,0.00019345,2]
[349037362,1736946650771,-503.9441776,0.00019345,2]
[349037363,1736946650781,-500.0,0.00019345,2]
[349037364,1736946650791,-500.0,0.00019345,2]
[349037365,1736946650801,-503.37489412,0.00019345,2]
[349037366,1736946650811,-385.04,0.00019352,2]
[349037367,1736946650822,-117.35316143,0.00019353,2]
[349037368,1736946650834,-528.09683857,0.00019353,2]
[349037369,1736946650844,-500.0,0.00019353,2]
[349037370,1736946650854,-500.0,0.00019619,2]
[349037371,1736946650864,-500.0,0.00019627,2]
[349037372,1736946650875,-500.0,0.00019893,2]
[349037373,1736946650885,-275.08184441,0.00019901,2]
[349037374,1736946650897,-73.61815559,0.00019901,2]
[349037375,1736946650908,-312.83,0.00020167,2]
[349037376,1736946650918,-150.0,0.00021661,2]
[349037377,1736946650929,-425.80383763,0.000272,44]
[349037378,1736946650939,-17191.14800678,0.0003,30]
[349037379,1736946650955,-254.151,0.00021661,2]
[349037380,1736946650965,-3379.26028201,0.0003,30]
[349037381,1736946650977,-9376.76146681,0.0003,30]
[349037382,1736946650987,-332.44089263,0.0003,2]
[349037383,1736946650999,-1401.73538488,0.0003,2]
[349037384,1736946651009,-1017.62722586,0.0003,2]
[349037385,1736946651019,-739.3918033,0.0003,14]
[349037386,1736946651182,-1260.6081967,0.0003,14]
[349037387,1736946651193,-150.0,0.0003,2]
[349037388,1736946651202,-150.0,0.0003,2]
[349037389,1736946651212,-43383.23570882,0.0003,20]
[349037390,1736946651221,-1000.0,0.0003,2]
[349037391,1736946651232,-5196.15587992,0.0003,15]
[349037392,1736946651241,-421.0,0.0003,20]
[349037393,1736946651251,-167.2,0.0003,120]
[349037394,1736946651262,-200.0,0.0003,120]
[349037395,1736946651271,-259.03333333,0.0003,120]
[349037396,1736946651281,-1000.0,0.0003,120]
[349037397,1736946651291,-1046.5974279,0.0003,120]
[349037398,1736946651301,-1000.0,0.0003,120]
[349037399,1736946651310,-400.1836808,0.0003,120]
[349037400,1736946651320,-1800.0,0.0003,31]
[349037401,1736946651330,-2247.0325599,0.0003,120]
[349037402,1736946651343,-7895.3759401,0.0003,120]
[349037403,1736946651352,-4106.0,0.0003,30]
[349037404,1736946651362,-1000.0,0.0003,30]
[349037405,1736946651372,-2355.23544887,0.0003,120]
[349037406,1736946651383,-10659.910975,0.0003,120]
[349037407,1736946651393,-1817.0,0.0003,120]
[349037408,1736946651404,-2867.85357613,0.0003,120]
[349037409,1736946651414,-2050.11941618,0.0003,120]
[349037410,1736946651423,-155.78998012,0.0003,120]
[349037411,1736946651433,-13126.23703077,0.0003,2]
[349037412,1736946651445,-651.249959,0.0003,2]
[349037413,1736946651457,-7890.45969147,0.0003,2]
[349037414,1736946651486,-500.0,0.00019345,2]
[349037415,1736946651496,-425.80383762,0.000272,44]
[349037416,1736946651506,-23964.57648444,0.0003,2]
[349037417,1736946651516,-21172.61767066,0.0003,2]
[349037418,1736946651526,-210.0,0.0003,2]
[349037419,1736946651536,-677.63152206,0.00030072,2]
[349037420,1736946651547,-200.0,0.000301,2]
[349037421,1736946651556,-343.0,0.000301,2]
[349037422,1736946651567,-250.0,0.000301,2]
[349037423,1736946651577,-489.30944841,0.000301,2]
[349037424,1736946651589,-188.69055159,0.000301,2]
[349037425,1736946651598,-475.46726315,0.000301,7]
[349037426,1736946651610,-842.20452302,0.000301,7]
[349037427,1736946651633,-500.0,0.00018531,2]
[349037428,1736946651643,-307.15821383,0.000301,7]
[349037429,1736946651654,-200.0,0.00030137,60]
[349037430,1736946651663,-333.02,0.00030166,2]
[349037431,1736946651673,-500.0,0.00030171,2]
[349037432,1736946651684,-31860.07267562,0.00030187,3]
[349037433,1736946651696,-343.48470714,0.00030187,3]
[349037434,1736946651708,-688.998,0.00030187,3]
[349037435,1736946651719,-420.0,0.00030187,3]
[349037436,1736946651731,-10785.31115087,0.00030187,3]
[349037437,1736946651742,-325.61,0.00030203,2]
[349037438,1736946651752,-1112.8559828,0.00030245,10]
[349037439,1736946651762,-508.66850194,0.00030279,2]
[349037440,1736946651772,-2672.70655402,0.0003029,2]
[349037441,1736946651781,-2000.0,0.000303,8]
[349037442,1736946651792,-3000.0,0.000304,2]
[349037443,1736946651803,-185.35,0.000306,31]
[349037444,1736946651813,-185.35,0.000306,31]
[349037445,1736946651823,-185.35,0.000306,31]
[349037446,1736946651833,-185.35,0.000306,31]
[349037447,1736946651843,-185.35,0.000306,31]
[349037448,1736946651852,-185.35,0.000306,31]
[349037449,1736946651863,-185.35,0.000306,31]
[349037450,1736946651873,-185.35,0.000306,31]
[349037451,1736946651883,-185.35,0.000306,31]
[349037452,1736946651892,-185.35,0.000306,31]
[349037453,1736946651902,-185.35,0.000306,31]
[349037454,1736946651912,-185.35,0.000306,31]
[349037455,1736946651921,-185.35,0.000306,31]
[349037456,1736946651931,-185.35,0.000306,31]
[349037457,1736946651941,-185.35,0.000306,31]
[349037458,1736946651950,-185.35,0.000306,31]
[349037459,1736946651959,-185.35,0.000306,31]
[349037460,1736946651969,-185.35,0.000306,31]
[349037461,1736946651979,-185.35,0.000306,31]
[349037462,1736946651989,-185.35,0.000306,31]
[349037463,1736946651998,-185.35,0.000306,31]
[349037464,1736946652008,-185.35,0.000306,31]
[349037465,1736946652018,-185.35,0.000306,31]
[349037466,1736946652028,-185.35,0.000306,31]
[349037467,1736946652040,-548.0,0.00030613,30]
[349037468,1736946652050,-250.0,0.000308,30]
[349037469,1736946652060,-259.03333333,0.00030849,120]
[349037470,1736946652069,-167.2,0.00030959,120]
[349037471,1736946652080,-27859.61150171,0.00031,31]
[349037472,1736946652091,-727.2,0.00031,31]
[349037473,1736946652106,-6812.34887319,0.00031,31]
[349037474,1736946652120,-371.75773149,0.00031,31]
[349037475,1736946652137,-3142.80000004,0.00031,31]
[349037476,1736946652149,-4090.91701531,0.00031,31]
[349037477,1736946652162,-1627.05411205,0.00031,31]
[349037478,1736946652210,-457.816,0.00019345,2]
[349037479,1736946652222,-42.184,0.00019345,2]
[349037480,1736946652232,-55368.31076621,0.00031,31]
[349037481,1736946652242,-324.17733066,0.00031,5]
[349037482,1736946652252,-500.0,0.00031,120]
[349037483,1736946652261,-1800.0,0.00031,32]
[349037484,1736946652271,-1050.0,0.00031,2]
[349037485,1736946652282,-1624.83,0.00031,7]
[349037486,1736946652292,-265.2,0.0003119,120]
[349037487,1736946652303,-500.0,0.00031199,2]
[349037488,1736946652313,-77093.59976091,0.000312,2]
[349037489,1736946652323,-500.0,0.0003123,120]
[349037490,1736946652332,-2000.0,0.000313,12]
[349037491,1736946652343,-677.63152206,0.00031314,2]
[349037492,1736946652352,-18674.14329999,0.0003143,4]
[349037493,1736946652362,-3500.00000001,0.000315,7]
[349037494,1736946652372,-259.03333333,0.00031699,120]
[349037495,1736946652381,-500.0,0.000319,20]
[349037496,1736946652391,-179.98421632,0.000319,2]
[349037497,1736946652400,-167.2,0.00031918,120]
[349037498,1736946652410,-12781.70580051,0.00032,32]
[349037499,1736946652426,-653.59319698,0.00032,32]
[349037500,1736946652437,-2097.11527436,0.00032,32]
[349037501,1736946652448,-4268.57500009,0.00032,32]
[349037502,1736946652459,-768.89942114,0.00032,32]
[349037503,1736946652475,-500.0,0.00019345,2]
[349037504,1736946652484,-222.26729193,0.00032,32]
[349037505,1736946652495,-561.17,0.00032,32]
[349037506,1736946652570,-300.75301768,0.00018431,2]
[349037507,1736946652582,-253.91713261,0.00018431,2]
[349037508,1736946652592,-500.0,0.00018531,2]
[349037509,1736946652602,-500.0,0.00018531,2]
[349037510,1736946652611,-353.43528049,0.00019345,2]
[349037511,1736946652623,-146.56471951,0.00019345,2]
[349037512,1736946652633,-425.80383762,0.000272,44]
[349037513,1736946652643,-1469.99694287,0.00032,32]
[349037514,1736946652659,-500.0,0.00018531,2]
[349037515,1736946652669,-1883.32343127,0.00032,32]
[349037516,1736946652680,-337.6699995,0.00032,32]
[349037517,1736946652695,-50000.11973999,0.00032,32]
[349037518,1736946652707,-672.3,0.00032,32]